bitfinex-derivatives/quotes_SOLF0:USTF0_20240912
["timestamp","ask_amount","ask_price","bid_price","bid_amount"]
[1726109805830,21.37781387,135.55,135.47,3.3211]
[1726109806032,21.37781387,135.55,135.45,3.69176795]
[1726109806225,17.72,135.53,135.42,19.1283]
[1726109806431,2.7904,135.52,135.42,22.86177242]
[1726109806932,6.42902244,135.52,135.42,22.86177242]
[1726109807230,6.42902244,135.52,135.46,3.3213]
[1726109807932,6.42902244,135.52,135.47,3.3212]
[1726109808530,2.7904,135.52,135.47,3.3212]
[1726109808835,6.51243137,135.52,135.47,3.3212]
[1726109810134,6.51243137,135.52,135.46,3.3214]
[1726109810635,7.82213137,135.52,135.46,3.3214]
[1726109812133,17.72,135.51,135.44,3.3219]
[1726109812335,3.3212,135.48,135.44,3.3219]
[1726109813035,3.3213,135.47,135.43,3.3221]
[1726109813836,3.3215,135.46,135.42,3.3224]
[1726109814944,17.72,135.49,135.41,3.3226]
[1726109815240,17.72,135.49,135.4,3.75580189]
[1726109815431,17.72,135.49,135.38,17.72]
[1726109816042,17.72,135.49,135.38,21.36265069]
[1726109816339,3.3217,135.46,135.42,3.3223]
[1726109816541,17.72,135.49,135.38,21.36265069]
[1726109817632,3.3215,135.46,135.42,3.3223]
[1726109818041,3.3213,135.47,135.43,3.3222]
[1726109821242,3.321,135.48,135.44,3.3219]
[1726109821433,7.82213137,135.52,135.4,17.72]
[1726109821434,17.72,135.51,135.4,17.72]
[1726109821841,7.82213137,135.52,135.42,17.72]
[1726109822030,4.1001,135.52,135.42,17.72]
[1726109822343,15.4301,135.52,135.46,11.33]
[1726109822539,4.1001,135.52,135.46,11.33]
[1726109822839,2.7904,135.52,135.47,11.33]
[1726109823035,2.7904,135.52,135.49,3.3207]
[1726109823735,1.4091,135.52,135.47,11.33]
[1726109823934,1.4091,135.52,135.5,3.3205]
[1726109825543,14.6496,135.54,135.51,3.3202]
[1726109825743,14.6496,135.54,135.49,11.33]
[1726109826139,3.3196,135.54,135.47,1.4206]
[1726109827250,3.3196,135.54,135.5,3.3204]
[1726109828541,3.3198,135.53,135.49,3.3207]
[1726109829846,124.18685117,135.56,135.47,3.3211]
[1726109829847,3.3202,135.51,135.47,3.3211]
[1726109830049,21.43631571,135.54,135.45,3.70893548]
[1726109831044,17.72,135.54,135.44,17.72]
[1726109831446,3.3202,135.52,135.47,3.3212]
[1726109831845,4.6245,135.52,135.45,3.71557769]
[1726109832050,4.6245,135.52,135.48,3.3209]
[1726109832555,3.3203,135.51,135.47,3.321]
[1726109832848,1.3043,135.52,135.44,17.72]
[1726109833053,1.3043,135.52,135.47,3.3212]
[1726109833854,1.3043,135.52,135.45,3.6183238]
[1726109834662,4.6244,135.52,135.47,3.321]
[1726109834953,4.6244,135.52,135.45,3.6183238]
[1726109835357,4.6244,135.52,135.48,3.321]
[1726109836055,1.3043,135.52,135.45,3.6183238]
[1726109836248,1.3043,135.52,135.42,17.72]
[1726109836751,1.3043,135.52,135.42,21.48087472]
[1726109837349,19.0243,135.52,135.42,21.48087472]
[1726109838442,19.0243,135.52,135.47,3.3212]
[1726109838758,1.3043,135.52,135.47,3.3212]
[1726109838952,1.3043,135.52,135.48,3.3209]
[1726109839155,1.3043,135.52,135.44,17.72]
[1726109839555,4.6243,135.52,135.48,3.3208]
[1726109840658,1.3043,135.52,135.45,1.3451]
[1726109841355,4.6243,135.52,135.48,3.3208]
[1726109842261,4.6243,135.52,135.49,3.3207]
[1726109842465,1.3043,135.52,135.46,17.72]
[1726109843256,1.3043,135.52,135.49,3.3205]
[1726109843760,3.3196,135.54,135.46,17.72]
[1726109844066,3.3196,135.54,135.45,1.3451]
[1726109844067,102.79346283,135.56,135.48,17.72]
[1726109844261,3.3188,135.57,135.53,3.3196]
[1726109844657,2.7586,135.58,135.51,3.73726461]
[1726109844961,1.3728,135.58,135.52,17.72]
[1726109846267,1.3728,135.58,135.56,3.319]
[1726109846757,1.3728,135.58,135.55,3.3192]
[1726109847662,1.3728,135.58,135.56,3.319]
[1726109847867,1.3728,135.58,135.52,17.72]
[1726109848062,1.3728,135.58,135.51,5.0135918]
[1726109848365,1.3728,135.58,135.53,11.33]
[1726109849765,4.6914,135.58,135.54,3.3195]
[1726109850460,12.7028,135.58,135.51,12.7196]
[1726109851266,12.7028,135.58,135.51,1.3896]
[1726109851559,11.33,135.55,135.49,11.33]
[1726109851762,14.6495,135.55,135.51,3.3201]
[1726109854568,14.6495,135.55,135.49,11.33]
[1726109854569,3.3195,135.54,135.5,3.3204]
[1726109855371,3.3198,135.53,135.49,14.6507]
[1726109855569,3.3198,135.53,135.49,11.33]
[1726109856362,3.3198,135.53,135.49,14.6507]
[1726109857071,3.3198,135.53,135.49,11.33]
[1726109857267,11.33,135.55,135.5,11.33]
[1726109857671,3.3192,135.56,135.52,3.3199]
[1726109859167,12.7028,135.58,135.52,11.33]
[1726109859571,16.0215,135.58,135.53,3.3195]
[1726109859768,12.7028,135.58,135.53,3.3195]
[1726109860363,3.3188,135.57,135.53,3.3195]
[1726109861670,16.0213,135.58,135.54,3.3195]
[1726109867682,3.3189,135.57,135.53,3.3197]
[1726109868776,3.3189,135.57,135.54,3.3195]
[1726109869483,16.0214,135.58,135.54,3.3195]
[1726109870580,1.3728,135.58,135.54,11.33]
[1726109871178,1.3728,135.58,135.55,3.3191]
[1726109873182,1.3728,135.58,135.54,11.33]
[1726109874286,1.3728,135.58,135.56,3.3189]
[1726109874688,4.6834,135.6,135.56,3.3189]
[1726109876687,1.3652,135.6,135.57,3.3188]
[1726109876883,1.3652,135.6,135.55,11.33]
[1726109877089,4.6835,135.6,135.56,3.3189]
[1726109877783,3.3183,135.59,135.56,3.3189]
[1726109878190,3.3183,135.59,135.55,11.33]
[1726109878191,3.3183,135.59,135.55,14.6492]
[1726109879691,1.3652,135.6,135.5,1.3021]
[1726109879692,3.3185,135.58,135.54,3.3194]
[1726109880485,3.3189,135.57,135.53,14.6496]
[1726109880885,3.3189,135.57,135.53,11.33]
[1726109881985,3.3189,135.57,135.54,3.3194]
[1726109882790,3.3186,135.58,135.54,3.3194]
[1726109888787,3.3186,135.58,135.54,14.6494]
[1726109889000,11.33,135.58,135.52,11.33]
[1726109889191,1.3056,135.57,135.5,4.94336968]
[1726109889391,12.6356,135.57,135.5,12.6321]
[1726109890799,3.3194,135.55,135.52,3.3199]
[1726109891100,3.3194,135.55,135.5,12.6321]
[1726109891994,3.3191,135.56,135.52,3.32]
[1726109892692,12.6356,135.57,135.51,3.3201]
[1726109892693,3.3193,135.55,135.51,3.3201]
[1726109893698,12.6356,135.57,135.5,12.6321]
[1726109894399,3.3191,135.56,135.52,3.3198]
[1726109896603,15.9544,135.57,135.53,3.3196]
[1726109897002,12.6356,135.57,135.53,3.3196]
[1726109897300,12.6356,135.57,135.5,12.6321]
[1726109897502,1.3056,135.57,135.52,11.33]
[1726109898397,3.319,135.56,135.52,14.6498]
[1726109899701,3.319,135.56,135.52,3.3198]
[1726109899909,3.3193,135.55,135.51,3.3202]
[1726109900098,3.3193,135.55,135.51,14.6502]
[1726109901693,3.3193,135.55,135.52,3.32]
[1726109902804,14.6491,135.56,135.52,3.32]
[1726109903004,11.33,135.56,135.52,3.32]
[1726109903802,3.3193,135.55,135.52,3.32]
[1726109904705,3.3193,135.55,135.51,14.6501]
[1726109904905,11.33,135.54,135.42,1.3599]
[1726109905108,11.33,135.54,135.48,11.33]
[1726109905710,3.3199,135.53,135.49,3.3206]
[1726109906313,3.3199,135.53,135.5,3.3205]
[1726109907617,3.3199,135.53,135.49,3.3206]
[1726109908312,11.33,135.54,135.42,1.3599]
[1726109908313,3.3202,135.52,135.42,1.3599]
[1726109908507,3.3202,135.52,135.47,11.33]
[1726109908727,11.33,135.54,135.47,11.33]
[1726109908909,3.3199,135.53,135.49,3.3207]
[1726109910414,14.6496,135.54,135.5,3.3203]
[1726109910609,11.33,135.54,135.5,3.3203]
[1726109911409,3.3198,135.53,135.49,3.3206]
[1726109913218,14.6496,135.54,135.5,3.3204]
[1726109915516,11.33,135.54,135.5,3.3204]
[1726109915721,3.3198,135.53,135.5,3.3204]
[1726109919113,3.3198,135.53,135.49,3.3207]
[1726109923822,11.33,135.54,135.49,3.3207]
[1726109923823,3.32,135.52,135.49,3.3207]
[1726109924126,11.33,135.54,135.49,3.3207]
[1726109924521,3.3198,135.53,135.49,3.3207]
[1726109925324,3.3195,135.54,135.49,11.33]
[1726109926224,4.6399,135.55,135.51,3.32]
[1726109926826,3.3196,135.54,135.51,3.32]
[1726109927726,11.33,135.54,135.48,11.33]
[1726109928228,14.6496,135.54,135.5,3.3204]
[1726109929534,3.3201,135.52,135.42,1.3599]
[1726109929727,11.33,135.54,135.48,11.33]
[1726109930932,3.3198,135.53,135.49,3.3207]
[1726109931135,11.33,135.52,135.42,1.3599]
[1726109931429,3.3203,135.51,135.47,3.3212]
[1726109932027,4.7157,135.52,135.48,11.33]
[1726109933046,1.3956,135.52,135.49,3.3207]
[1726109933336,1.3956,135.52,135.48,11.33]
[1726109933744,1.3956,135.52,135.49,3.3206]
[1726109934337,1.3956,135.52,135.5,3.3205]
[1726109934637,1.3956,135.52,135.48,11.33]
[1726109935041,1.3956,135.52,135.49,3.3207]
[1726109935540,11.33,135.5,135.34,27.21023577]
[1726109935842,11.33,135.46,135.39,11.33]
[1726109936838,3.322,135.44,135.4,3.3229]
[1726109939148,14.652,135.44,135.4,3.3229]
[1726109939650,11.33,135.44,135.38,1.4033]
[1726109939834,11.33,135.43,135.38,1.4033]
[1726109940038,11.33,135.44,135.38,12.7333]
[1726109940349,3.322,135.44,135.4,3.3228]
[1726109940739,3.322,135.44,135.39,3.3231]
[1726109941039,3.3224,135.43,135.39,3.3231]
[1726109944050,2.59,135.46,135.42,11.33]
[1726109944051,1.2826,135.46,135.42,11.33]
[1726109944451,1.2826,135.46,135.42,14.6524]
[1726109944644,1.2826,135.46,135.42,11.33]
[1726109945370,1.2826,135.46,135.42,14.6523]
[1726109945648,3.321,135.48,135.42,11.33]
[1726109945851,14.651,135.48,135.42,11.33]
[1726109946743,14.651,135.48,135.44,3.3219]
[1726109947252,11.33,135.48,135.42,11.33]
[1726109947451,11.33,135.48,135.44,3.3217]
[1726109948754,1.3805,135.49,135.45,3.3215]
[1726109949246,4.7013,135.49,135.44,3.3219]
[1726109949848,4.7013,135.49,135.43,11.33]
[1726109950352,4.7013,135.49,135.45,11.33]
[1726109950749,4.7013,135.49,135.45,14.6517]
[1726109951541,1.3127,135.54,135.47,11.33]
[1726109951742,1.3127,135.54,135.5,11.33]
[1726109951947,1.3127,135.54,135.51,11.33]
[1726109952349,1.3127,135.54,135.44,1.4073]
[1726109952648,1.3127,135.54,135.5,11.33]
[1726109953054,1.3127,135.54,135.52,11.33]
[1726109953445,1.3127,135.54,135.5,11.33]
[1726109954053,1.3127,135.54,135.5,14.6504]
[1726109956241,1.3127,135.54,135.51,3.3202]
[1726109958457,1.3127,135.54,135.5,11.33]
[1726109958657,1.3127,135.54,135.44,5.1597798]
[1726109958846,1.3127,135.54,135.49,11.33]
[1726109959656,1.3127,135.54,135.51,11.33]
[1726109960056,4.6324,135.54,135.51,11.33]
[1726109965460,4.6324,135.54,135.51,14.6502]
[1726109966958,1.3127,135.54,135.51,11.33]
[1726109967159,11.33,135.58,135.51,11.33]
[1726109967359,1.4086,135.57,135.51,11.33]
[1726109968466,3.3194,135.55,135.51,14.6502]
[1726109970069,3.3194,135.55,135.52,11.33]
[1726109971471,3.3194,135.55,135.52,14.65]
[1726109971671,1.4086,135.57,135.52,11.33]
[1726109971672,4.7275,135.57,135.52,11.33]
[1726109971864,1.4086,135.57,135.53,11.33]
[1726109973780,1.4086,135.57,135.53,14.6497]
[1726109974578,3.3191,135.56,135.53,14.6497]
[1726109978072,3.3191,135.56,135.53,11.33]
[1726109981880,3.75377618,135.56,135.44,5.1597798]
[1726109982079,3.75377618,135.56,135.5,11.33]
[1726109982580,3.3199,135.53,135.5,11.33]
[1726109983275,3.3199,135.53,135.44,5.1597798]
[1726109983276,3.32,135.52,135.48,3.321]
[1726109983474,3.32,135.52,135.49,11.33]
[1726109986477,3.3205,135.51,135.44,5.1597798]
[1726109986683,3.3205,135.51,135.47,11.33]
[1726109987084,3.3208,135.49,135.45,3.3217]
[1726109987284,3.3208,135.49,135.46,11.33]
[1726109989682,3.3208,135.49,135.46,14.6515]
[1726109990181,3.3206,135.5,135.46,14.6515]
[1726109996496,11.33,135.5,135.33,240.60511788]
[1726109996792,1.2909,135.5,135.44,11.33]
[1726109996979,3.3211,135.48,135.44,11.33]
[1726109997184,1.2909,135.5,135.44,14.6519]
[1726109998294,3.3212,135.48,135.44,14.6519]
[1726110000494,3.3212,135.47,135.44,14.6519]
[1726110001989,3.3211,135.48,135.44,14.6519]
[1726110002389,1.2909,135.5,135.45,3.3217]
[1726110002592,3.3208,135.49,135.45,14.6517]
[1726110002798,12.7339,135.52,135.46,11.33]
[1726110002995,5.01110988,135.52,135.47,11.33]
[1726110003195,3.60720988,135.52,135.49,11.33]
[1726110003591,11.33,135.56,135.5,11.33]
[1726110003793,14.97636843,135.56,135.5,11.33]
[1726110004398,11.33,135.55,135.49,11.33]
[1726110005497,11.33,135.57,135.5,11.33]
[1726110006094,3.3193,135.55,135.5,11.33]
[1726110006299,12.7037,135.58,135.51,11.33]
[1726110006501,12.7037,135.58,135.53,11.33]
[1726110006999,3.319,135.57,135.53,11.33]
[1726110007904,228.0,135.66,135.54,11.33]
[1726110008105,11.33,135.61,135.54,11.33]
[1726110008410,11.33,135.61,135.55,3.3191]
[1726110009306,11.33,135.61,135.56,3.319]
[1726110009513,11.33,135.61,135.56,14.649]
[1726110009899,14.0468,135.62,135.56,14.649]
[1726110010102,3.318,135.61,135.56,14.649]
[1726110010402,1.2982,135.62,135.57,11.33]
[1726110011607,1.2982,135.62,135.58,3.3183]
[1726110013619,1.2982,135.62,135.59,3.3182]
[1726110013821,14.6471,135.64,135.59,14.6482]
[1726110014014,4.96391188,135.65,135.59,14.6482]
[1726110014212,4.96391188,135.65,135.56,1.3391]
[1726110014213,11.33,135.64,135.58,3.3185]
[1726110014415,11.33,135.62,135.56,1.3391]
[1726110014915,3.3182,135.6,135.56,4.658]
[1726110015221,11.33,135.62,135.56,4.658]
[1726110015420,11.33,135.62,135.56,12.6691]
[1726110015621,11.33,135.62,135.57,3.3187]
[1726110016619,3.3179,135.61,135.57,3.27622017]
[1726110017518,3.3176,135.62,135.56,12.6691]
[1726110018219,3.3176,135.62,135.57,3.3187]
[1726110018421,3.3179,135.61,135.57,3.3187]
[1726110018621,11.33,135.63,135.56,12.6691]
[1726110018833,11.33,135.62,135.55,11.33]
[1726110019133,3.3184,135.59,135.55,11.33]
[1726110019321,3.3184,135.59,135.55,14.6491]
[1726110019718,11.33,135.6,135.55,11.33]
[1726110019921,2.5992,135.64,135.47,1.3778]
[1726110019922,11.33,135.58,135.47,1.3778]
[1726110020127,3.3192,135.56,135.51,11.33]
[1726110020325,1.3231,135.57,135.51,14.6501]
[1726110020637,1.3231,135.57,135.51,11.33]
[1726110021321,4.6419,135.57,135.52,3.3198]
[1726110021522,1.3231,135.57,135.52,3.3198]
[1726110022928,3.319,135.56,135.52,3.3198]
[1726110024136,3.319,135.56,135.51,14.6502]
[1726110024835,3.319,135.56,135.52,3.3199]
[1726110025236,4.6419,135.57,135.52,3.3199]
[1726110025536,4.6419,135.57,135.53,3.3197]
[1726110025922,3.319,135.56,135.51,11.33]
[1726110026826,3.319,135.56,135.52,3.32]
[1726110027934,4.6419,135.57,135.53,14.6497]
[1726110028935,3.319,135.56,135.53,11.33]
[1726110034239,3.3193,135.55,135.52,3.3199]
[1726110034440,3.3193,135.55,135.51,14.6502]
[1726110034840,3.3195,135.54,135.51,14.6502]
[1726110035040,1.3231,135.57,135.51,11.33]
[1726110035242,1.3231,135.57,135.53,11.33]
[1726110036141,1.3231,135.57,135.53,14.6497]
[1726110036840,4.6419,135.57,135.53,14.6497]
[1726110038940,1.3231,135.57,135.54,3.3195]
[1726110039142,12.6531,135.57,135.51,11.33]
[1726110040132,3.3192,135.56,135.52,3.3199]
[1726110042140,12.6531,135.57,135.53,3.3197]
[1726110042342,12.6531,135.57,135.51,11.33]
[1726110042541,3.3192,135.56,135.52,3.3199]
[1726110043846,3.3193,135.55,135.51,14.6502]
[1726110047544,3.3199,135.53,135.49,3.3205]
[1726110047849,11.33,135.54,135.49,3.3205]
[1726110048855,3.32,135.52,135.49,3.3205]
[1726110049754,3.3198,135.53,135.49,3.3205]
[1726110056754,14.6498,135.53,135.49,3.3205]
[1726110057546,3.32,135.52,135.49,3.3205]
[1726110057746,11.33,135.53,135.48,14.6509]
[1726110057941,11.33,135.53,135.48,11.33]
[1726110058146,14.6499,135.53,135.48,11.33]
[1726110058355,14.6499,135.53,135.49,3.3207]
[1726110060457,11.33,135.54,135.5,3.3205]
[1726110061448,14.6497,135.54,135.5,3.3205]
[1726110061656,11.33,135.54,135.49,3.3207]
[1726110062054,1.3231,135.57,135.49,11.33]
[1726110062259,11.33,135.56,135.49,11.33]
[1726110062650,12.6531,135.57,135.5,11.33]
[1726110063261,12.6531,135.57,135.53,3.3195]
[1726110063456,12.6531,135.57,135.52,11.33]
[1726110063657,12.6531,135.57,135.54,3.3193]
[1726110063962,3.61051188,135.65,135.54,11.33]
[1726110064171,11.33,135.61,135.54,11.33]
[1726110064368,3.3182,135.6,135.56,3.3189]
[1726110064568,11.33,135.61,135.54,11.33]
[1726110064867,3.3186,135.58,135.53,11.33]
[1726110065165,11.33,135.57,135.52,1.289]
[1726110065962,11.33,135.57,135.54,3.3194]
[1726110066265,11.33,135.57,135.52,1.289]
[1726110066763,2.6366,135.63,135.52,1.289]
[1726110066764,14.6485,135.59,135.55,3.3192]
[1726110067573,14.648,135.6,135.56,3.3189]
[1726110067873,14.648,135.6,135.54,11.33]
[1726110068085,14.648,135.6,135.56,3.3188]
[1726110069874,3.3178,135.61,135.57,3.3187]
[1726110070180,14.6478,135.61,135.57,3.3187]
[1726110070377,11.33,135.61,135.58,3.3185]
[1726110070574,117.38968782,135.62,135.58,3.3185]
[1726110071175,117.38968782,135.62,135.59,3.3183]
[1726110071176,114.07208782,135.62,135.59,3.3183]
[1726110072281,114.07208782,135.62,135.58,3.3183]
[1726110072480,114.07208782,135.62,135.55,11.33]
[1726110072882,114.07208782,135.62,135.58,3.3183]
[1726110073280,114.07208782,135.62,135.55,15.01894787]
[1726110073988,114.07208782,135.62,135.57,11.33]
[1726110074183,114.07208782,135.62,135.59,3.3181]
[1726110075380,114.07208782,135.62,135.6,3.318]
[1726110076181,114.07208782,135.62,135.59,3.3182]
[1726110080289,117.38968782,135.62,135.59,3.3182]
[1726110081986,2.6366,135.63,135.57,11.33]
[1726110082685,5.954,135.63,135.59,3.3181]
[1726110087181,2.76,135.73,135.61,11.33]
[1726110087385,11.33,135.67,135.61,11.33]
[1726110087591,15.04753607,135.67,135.61,11.33]
[1726110088187,3.317,135.65,135.61,14.6476]
[1726110090988,4.7054,135.66,135.62,3.3175]
[1726110091481,4.7053,135.66,135.62,3.3175]
[1726110092289,3.3168,135.65,135.62,3.3175]
[1726110096295,4.7053,135.66,135.62,3.3175]
[1726110096489,1.3887,135.66,135.62,3.3175]
[1726110096995,3.3173,135.64,135.6,11.33]
[1726110097292,12.7187,135.66,135.6,14.648]
[1726110098287,3.3173,135.64,135.6,14.648]
[1726110099789,3.3169,135.65,135.61,3.3177]
[1726110102798,3.3169,135.65,135.62,3.3175]
[1726110105896,3.3169,135.65,135.61,14.6477]
[1726110106402,3.3169,135.65,135.62,3.3175]
[1726110107998,1.3887,135.66,135.62,3.3175]
[1726110107999,4.7054,135.66,135.62,3.3175]
[1726110109700,4.7054,135.66,135.58,3.64675918]
[1726110109701,3.3171,135.64,135.58,3.64675918]
[1726110109900,3.3171,135.64,135.52,1.289]
[1726110109901,3.3171,135.64,135.59,11.33]
[1726110110502,3.3171,135.64,135.6,3.3179]
[1726110111100,11.33,135.64,135.52,1.289]
[1726110111294,11.33,135.63,135.57,11.33]
[1726110111800,12.7187,135.66,135.6,11.33]
[1726110112002,12.7187,135.66,135.61,11.33]
[1726110112003,1.3887,135.66,135.61,11.33]
[1726110112395,3.3168,135.65,135.62,3.3173]
[1726110114102,1.3887,135.66,135.63,3.3173]
[1726110114407,1.3887,135.66,135.64,11.33]
[1726110115203,1.3887,135.66,135.64,14.647]
[1726110115506,3.63302205,135.7,135.64,11.33]
[1726110115708,11.33,135.71,135.64,11.33]
[1726110115909,3.3161,135.68,135.65,3.3168]
[1726110116908,3.3161,135.68,135.64,14.647]
[1726110118503,3.3161,135.68,135.65,3.3168]
[1726110120511,3.3161,135.68,135.64,14.647]
[1726110120811,15.02901666,135.71,135.64,11.33]
[1726110121513,3.3162,135.68,135.64,14.6471]
[1726110122117,11.33,135.69,135.63,14.6472]
[1726110122413,11.33,135.69,135.55,3.64749657]
[1726110122414,11.33,135.68,135.61,11.33]
[1726110122603,3.317,135.65,135.61,14.6476]
[1726110122808,2.6541,135.67,135.61,14.6476]
[1726110123009,3.3172,135.64,135.61,11.33]
[1726110123211,3.3172,135.64,135.6,3.3179]
[1726110123212,3.3172,135.64,135.6,14.6479]
[1726110124418,3.3173,135.63,135.6,3.3179]
[1726110124811,11.33,135.63,135.58,3.64870599]
[1726110125211,3.3178,135.61,135.58,3.64870599]
[1726110125610,11.33,135.62,135.55,11.33]
[1726110125919,3.9676,135.67,135.52,1.289]
[1726110125920,11.33,135.59,135.52,1.289]
[1726110126218,11.33,135.59,135.53,14.6497]
[1726110126518,2.6212,135.61,135.51,11.33]
[1726110126519,11.33,135.58,135.51,11.33]
[1726110127315,11.33,135.58,135.53,11.33]
[1726110127515,14.6485,135.58,135.53,14.6496]
[1726110127719,12.6518,135.6,135.54,11.33]
[1726110128018,12.6518,135.6,135.46,1.3479]
[1726110128019,1.3218,135.6,135.56,11.33]
[1726110128315,1.3218,135.6,135.57,11.33]
[1726110128528,6.39378809,135.61,135.57,11.33]
[1726110128815,2.6212,135.61,135.57,11.33]
[1726110129215,1.3077,135.61,135.57,11.33]
[1726110129926,4.6255,135.61,135.57,14.6487]
[1726110133426,12.6377,135.61,135.55,11.33]
[1726110133928,3.3183,135.59,135.55,14.6491]
[1726110134120,3.3183,135.59,135.55,11.33]
[1726110135428,11.33,135.6,135.54,11.33]
[1726110135928,3.3189,135.57,135.53,3.3197]
[1726110136126,3.3189,135.57,135.52,11.33]
[1726110136327,11.33,135.58,135.52,11.33]
[1726110136529,11.33,135.6,135.53,11.33]
[1726110137428,12.6377,135.61,135.56,11.33]
[1726110137622,1.3077,135.61,135.57,11.33]
[1726110137823,1.3077,135.61,135.58,3.3185]
[1726110138023,1.331,135.63,135.59,11.33]
[1726110138218,114.05449223,135.64,135.6,11.33]
[1726110138219,102.72449223,135.64,135.6,11.33]
[1726110138534,106.04159223,135.64,135.6,11.33]
[1726110139423,4.0768,135.68,135.61,11.33]
[1726110139635,15.4068,135.68,135.63,11.33]
[1726110140026,3.3168,135.66,135.61,14.6477]
[1726110140222,11.33,135.67,135.61,14.6477]
[1726110140428,11.33,135.65,135.61,3.3177]
[1726110140629,11.33,135.65,135.6,14.648]
[1726110140829,11.33,135.64,135.58,11.33]
[1726110141540,3.3175,135.63,135.58,11.33]
[1726110142227,3.3175,135.63,135.59,3.3181]
[1726110142833,11.33,135.63,135.54,1.4016]
[1726110143035,11.33,135.63,135.56,11.33]
[1726110143437,3.3176,135.62,135.58,3.3183]
[1726110149642,3.3174,135.63,135.59,3.3183]
[1726110152245,3.3176,135.62,135.59,3.3183]
[1726110152445,3.3176,135.62,135.58,11.33]
[1726110152745,3.3176,135.62,135.58,3.3184]
[1726110153444,11.33,135.61,135.57,3.3187]
[1726110153651,11.33,135.61,135.55,11.33]
[1726110153860,3.3184,135.59,135.55,3.3191]
[1726110157259,14.6484,135.59,135.55,3.3191]
[1726110158264,3.9648,135.63,135.55,11.33]
[1726110158461,11.33,135.61,135.51,3.63677113]
[1726110158669,3.3184,135.59,135.55,3.319]
[1726110158965,11.33,135.61,135.54,11.33]
[1726110159163,3.3182,135.6,135.56,3.3189]
[1726110161765,3.3182,135.6,135.57,3.3187]
[1726110162164,11.33,135.62,135.55,11.33]
[1726110162369,11.33,135.62,135.58,3.3183]
[1726110162964,14.6477,135.62,135.59,3.3183]
[1726110163158,14.6477,135.62,135.59,9.4783]
[1726110164168,17.242,135.63,135.59,9.4783]
[1726110164473,15.938,135.63,135.59,9.4783]
[1726110164967,15.938,135.63,135.6,3.318]
[1726110165264,1.3251,135.64,135.59,6.16]
[1726110165473,1.3251,135.64,135.6,11.33]
[1726110165863,1.3251,135.64,135.59,6.16]
[1726110165864,12.6551,135.64,135.59,6.16]
[1726110166374,15.9723,135.64,135.6,3.318]
[1726110170368,15.9723,135.64,135.63,1.36]
[1726110173574,4.6423,135.64,135.63,1.36]
[1726110174865,1.3251,135.64,135.63,1.36]
[1726110175076,3.3169,135.65,135.63,1.36]
[1726110175271,11.33,135.66,135.63,1.36]
[1726110175462,3.3166,135.66,135.63,1.36]
[1726110176375,14.6464,135.67,135.63,4.6773]
[1726110177064,4.7332,135.68,135.64,3.317]
[1726110177475,1.417,135.68,135.63,12.69]
[1726110178265,1.417,135.68,135.65,3.3166]